bitfinex-derivatives/quotes_ETHF0:USTF0_20260213
["timestamp","ask_amount","ask_price","bid_price","bid_amount"]
[1771006435252,0.57967719,2058.8,2058.4,0.01642885]
[1771006435551,0.57967719,2058.8,2058.3,0.2431]
[1771006435946,0.57967719,2058.8,2058.3,0.25952885]
[1771006436147,0.57967719,2058.8,2058.3,0.2431]
[1771006436449,0.57967719,2058.8,2058.3,0.25905039]
[1771006438755,0.57967719,2058.8,2058.1,0.01636698]
[1771006439847,0.57967719,2058.8,2057.9,4.05136698]
[1771006440452,0.57967719,2058.8,2058.0,0.02072279]
[1771006440648,0.57753022,2058.6,2058.2,0.02075991]
[1771006440859,41.37753022,2058.7,2058.2,0.02075991]
[1771006441153,0.57753022,2058.8,2058.2,0.02075991]
[1771006441748,41.37753022,2058.8,2058.3,0.26386113]
[1771006442243,0.58244983,2059.0,2058.4,0.02032474]
[1771006442448,0.58244983,2059.0,2057.7,0.02032474]
[1771006442654,0.58244983,2059.0,2057.9,0.02032474]
[1771006442853,0.5777478,2058.8,2057.9,0.02032474]
[1771006445848,0.5777478,2058.8,2057.8,0.24315]
[1771006446959,3.13668805,2058.7,2057.6,0.00506156]
[1771006447156,0.58556908,2058.6,2057.6,0.00506156]
[1771006447651,0.58556908,2058.6,2057.3,0.24321]
[1771006447848,0.58556908,2058.6,2057.3,0.25295374]
[1771006448049,0.58556908,2058.6,2057.4,0.00974374]
[1771006448246,0.58042552,2058.4,2057.5,0.2581593]
[1771006448752,0.58042552,2058.4,2057.5,0.24856446]
[1771006450959,0.58042552,2058.4,2057.6,0.02711416]
[1771006451647,0.58042552,2058.4,2057.5,0.24856446]
[1771006451847,0.58042552,2058.4,2057.5,0.27567862]
[1771006452452,0.58042552,2058.4,2057.5,0.24856446]
[1771006453359,0.58042552,2058.4,2057.5,0.27190639]
[1771006454753,0.58042552,2058.4,2057.5,0.24856446]
[1771006455757,0.58042552,2058.4,2057.5,0.27801463]
[1771006455959,0.58042552,2058.4,2057.5,0.24856446]
[1771006459756,0.57523561,2058.6,2058.1,0.02534912]
[1771006459960,0.57523561,2058.6,2058.0,0.24312]
[1771006460359,0.57399192,2058.4,2058.0,0.24312]
[1771006462361,0.57399192,2058.4,2057.5,0.25910457]
[1771006463164,0.57399192,2058.4,2057.6,0.01055011]
[1771006463361,0.57399192,2058.4,2057.7,0.25372011]
[1771006464163,0.57399192,2058.4,2057.7,0.24317]
[1771006467867,0.57399192,2058.4,2057.5,0.00537446]
[1771006468263,0.57399192,2058.4,2057.5,0.01054495]
[1771006468662,0.57399192,2058.4,2057.5,0.00537446]
[1771006470069,0.57399192,2058.4,2057.5,0.01054495]
[1771006471671,0.57399192,2058.4,2057.5,0.00537446]
[1771006473964,0.57399192,2058.4,2057.5,0.01244778]
[1771006474170,0.57399192,2058.4,2057.7,0.00707332]
[1771006474975,0.57399192,2058.4,2057.6,0.00943496]
[1771006475174,0.57399192,2058.4,2057.8,0.24316]
[1771006475675,0.57399192,2058.4,2057.5,0.00537446]
[1771006476073,0.57399192,2058.4,2057.5,7.27582988]
[1771006476274,0.57399192,2058.4,2057.6,0.01109025]
[1771006476579,0.57399192,2058.4,2057.7,0.01109025]
[1771006478480,0.57399192,2058.4,2057.6,0.24317]
[1771006484481,0.57399192,2058.4,2057.6,7.50419046]
[1771006485383,0.57399192,2058.4,2057.6,0.24317]
[1771006485584,0.57399192,2058.4,2057.6,7.50419046]
[1771006486491,0.57399192,2058.4,2057.6,0.24317]
[1771006486680,0.57399192,2058.4,2057.6,7.50419046]
[1771006486885,0.57399192,2058.4,2057.6,0.24317]
[1771006491389,0.57399192,2058.4,2057.5,0.00537446]
[1771006491586,0.59214239,2058.2,2057.3,7.26102046]
[1771006491985,0.59214239,2058.2,2057.2,7.50424046]
[1771006492584,0.59214239,2058.2,2057.2,7.50962272]
[1771006493880,0.59214239,2058.2,2057.6,0.24318]
[1771006495791,0.24314,2057.9,2057.0,4.75922585]
[1771006495988,43.62954649,2057.7,2056.5,0.58766667]
[1771006496189,7.26802154,2057.6,2056.2,0.58766667]
[1771006496384,0.2432,2057.4,2056.2,0.58766667]
[1771006496592,4.60309524,2057.4,2056.0,0.58778332]
[1771006496892,0.24323,2057.2,2055.6,0.58778332]
[1771006497096,20.175,2057.1,2056.0,0.00482532]
[1771006497298,4.71132832,2057.0,2056.0,0.00482532]
[1771006497490,4.71132832,2057.0,2055.4,0.58778332]
[1771006497491,0.24327,2056.8,2055.4,0.58778332]
[1771006497791,7.6192421,2056.8,2055.4,0.58778332]
[1771006497990,4.4678458,2056.7,2055.4,0.58778332]
[1771006498596,4.4678458,2056.7,2055.4,0.59350259]
[1771006500191,0.2433,2056.6,2055.4,0.59350259]
[1771006500392,0.2433,2056.6,2055.4,0.00571927]
[1771006500596,6.22854,2056.6,2055.4,0.00571927]
[1771006500798,0.24335,2056.2,2055.0,0.60768978]
[1771006500998,20.177,2056.1,2055.0,0.60768978]
[1771006501199,20.177,2056.1,2054.8,0.60769279]
[1771006501400,2.79592747,2056.0,2054.6,0.60769279]
[1771006501805,2.79592747,2056.0,2054.6,0.61205097]
[1771006502109,40.8,2055.6,2054.6,0.61205097]
[1771006502306,40.80478766,2055.6,2054.6,0.61205097]
[1771006502506,40.80478766,2055.6,2054.8,0.59843523]
[1771006503011,40.80478766,2055.6,2055.0,5.32344496]
[1771006503214,40.80478766,2055.6,2055.0,0.59843523]
[1771006503507,40.80478766,2055.6,2055.1,5.32344496]
[1771006503702,40.80478766,2055.6,2055.1,0.59843523]
[1771006503901,40.80478766,2055.6,2055.1,4.72500973]
[1771006505113,40.80478766,2055.6,2055.1,5.31373762]
[1771006506210,40.80478766,2055.6,2055.1,4.72500973]
[1771006506410,40.80478766,2055.6,2055.1,5.3150021]
[1771006506611,40.80478766,2055.6,2055.2,5.3150021]
[1771006506813,40.80478766,2055.6,2055.0,0.58999237]
[1771006507610,40.80478766,2055.6,2055.1,4.72500973]
[1771006508113,40.80478766,2055.6,2054.8,0.58999237]
[1771006508411,40.80478766,2055.6,2054.8,5.3150021]
[1771006508610,40.80478766,2055.6,2054.9,0.59985354]
[1771006510116,40.80478766,2055.6,2054.6,0.00435818]
[1771006510316,2.55255747,2055.5,2053.8,0.60217495]
[1771006510816,40.8,2054.9,2053.8,0.60217495]
[1771006511108,12.103,2054.8,2053.8,0.60217495]
[1771006511314,12.103,2054.8,2054.0,5.32718468]
[1771006511813,12.103,2054.8,2054.1,4.72500973]
[1771006512112,12.103,2054.8,2053.8,0.00381712]
[1771006512317,20.177,2054.7,2053.8,0.60616144]
[1771006512618,41.0435,2054.9,2053.8,0.00381712]
[1771006512619,20.178,2054.6,2053.8,0.00381712]
[1771006513215,0.24355,2054.5,2053.2,0.60234432]
[1771006513523,0.24355,2054.5,2052.8,6.05368021]
[1771006513524,20.177,2054.4,2053.4,0.60234432]
[1771006513817,17.788,2054.7,2053.6,0.60234432]
[1771006514116,17.788,2054.7,2053.6,0.60703894]
[1771006517518,40.8,2054.9,2053.6,0.60703894]
[1771006517714,20.42151,2054.8,2053.6,0.60703894]
[1771006517914,20.42151,2054.8,2053.6,0.00469462]
[1771006519919,20.42151,2054.8,2053.6,0.63358691]
[1771006520320,0.24351,2054.8,2053.6,0.63358691]
[1771006520521,20.178,2054.7,2053.6,0.63358691]
[1771006520820,0.24351,2054.8,2053.6,0.63358691]
[1771006521018,40.8,2054.9,2053.8,0.62566549]
[1771006521215,40.8,2054.9,2054.2,0.62566549]
[1771006521416,0.00478766,2055.6,2054.4,0.62566549]
[1771006521621,0.00478766,2055.6,2054.3,0.24357]
[1771006521622,0.00478766,2055.6,2054.6,0.62566549]
[1771006521817,12.22078766,2055.6,2054.6,0.62566549]
[1771006522322,12.22078766,2055.6,2054.0,0.2436]
[1771006522323,12.22078766,2055.6,2054.1,0.61916203]
[1771006522522,40.8,2055.5,2054.1,0.61916203]
[1771006523626,40.8,2055.5,2054.3,0.61916203]
[1771006523825,20.179,2055.4,2054.5,0.61916203]
[1771006525323,40.8,2055.5,2054.5,0.61916203]
[1771006525524,25.09075323,2055.4,2054.5,0.61916203]
[1771006525726,20.179,2055.4,2054.5,0.61916203]
[1771006526128,4.91840452,2055.3,2054.5,0.61916203]
[1771006526426,20.179,2055.4,2054.5,0.61916203]
[1771006526624,4.9193136,2055.3,2054.5,0.61916203]
[1771006526825,20.179,2055.4,2054.5,0.61916203]
[1771006527125,4.91931978,2055.3,2054.5,0.61916203]
[1771006527327,4.91931978,2055.2,2054.5,0.61916203]
[1771006527528,23.0871263,2055.4,2054.5,0.61916203]
[1771006527728,4.92533148,2055.3,2054.5,0.61916203]
[1771006528029,4.92533148,2055.2,2054.3,0.62113669]
[1771006528228,2.9081263,2055.1,2054.3,0.62113669]
[1771006528428,4.92533148,2055.0,2054.3,0.62113669]
[1771006528627,2.9081263,2055.2,2054.3,0.62113669]
[1771006528826,4.91994857,2055.1,2054.3,0.62113669]
[1771006529029,4.91994857,2055.0,2054.3,0.62113669]
[1771006529229,2.9081263,2055.2,2054.3,0.62113669]
[1771006529425,4.92392516,2055.1,2054.3,0.62113669]
[1771006529727,4.92392516,2055.0,2054.3,0.62113669]
[1771006530031,2.9081263,2055.2,2054.3,0.62113669]
[1771006530234,25.08716366,2055.1,2054.3,0.62113669]
[1771006530528,4.90716366,2055.0,2054.3,0.62113669]
[1771006530730,23.0881263,2055.3,2054.4,0.61501788]
[1771006530930,4.90763913,2055.2,2054.4,0.61501788]
[1771006531226,4.90763913,2055.1,2054.4,0.61501788]
[1771006531431,20.18,2055.3,2054.4,0.61501788]
[1771006531628,4.90901298,2055.2,2054.4,0.61501788]
[1771006531827,63.8881263,2055.5,2054.6,0.6150372]
[1771006532028,4.90839166,2055.4,2054.6,0.6150372]
[1771006532334,40.8,2055.5,2054.6,0.6150372]
[1771006532531,4.90815142,2055.4,2054.6,0.6150372]
[1771006532827,40.8,2055.5,2054.8,0.614381]
[1771006533226,40.8,2055.5,2055.0,0.614381]
[1771006533428,0.00478766,2055.6,2055.0,0.614381]
[1771006534434,40.8,2055.5,2055.0,0.614381]
[1771006536334,41.37055081,2055.5,2055.0,0.614381]
[1771006536533,2.9081263,2056.1,2055.0,0.614381]
[1771006536729,0.58816685,2055.9,2055.1,0.24347]
[1771006537232,0.58816685,2055.9,2054.6,0.24353]
[1771006537632,0.58817002,2055.7,2054.6,0.24946815]
[1771006539634,0.58817002,2055.7,2054.6,6.24049815]
[1771006540431,0.58817002,2055.7,2055.0,0.24348]
[1771006540938,40.8,2055.8,2055.0,0.24348]
[1771006541135,0.00434508,2055.9,2055.4,0.24343]
[1771006541329,0.59332414,2055.9,2055.4,0.24343]
[1771006541735,0.58897906,2055.8,2055.4,0.24343]
[1771006542236,0.58897906,2055.8,2054.8,5.99044]
[1771006543131,0.58897906,2055.8,2054.9,0.2435]
[1771006549633,0.58897906,2055.8,2055.3,0.24345]
[1771006550638,0.58897906,2055.8,2054.9,0.2435]
[1771006552639,0.58897906,2055.8,2055.2,0.24345]
[1771006553542,40.80434508,2055.9,2054.9,5.99008]
[1771006553845,2.9081263,2056.7,2055.1,0.24347]
[1771006553846,0.59066936,2056.4,2055.1,0.24347]
[1771006554248,0.59202495,2056.1,2055.1,0.24347]
[1771006554544,0.59202495,2056.1,2054.7,4.27952]
[1771006554739,0.59202495,2055.8,2054.7,4.27952]
[1771006554938,0.59620942,2055.8,2054.7,0.24352]
[1771006558043,0.59620942,2055.8,2055.1,0.24347]
[1771006559141,0.00418447,2055.8,2055.5,0.24343]
[1771006560647,0.00418447,2055.8,2055.5,0.25129317]
[1771006561042,0.58858363,2055.8,2055.1,0.25133317]
[1771006561446,0.58858363,2055.8,2055.1,0.24347]
[1771006561843,0.58438568,2055.5,2054.6,4.28546815]
[1771006562345,0.58438568,2055.5,2054.6,0.00593815]
[1771006562948,0.58435571,2055.2,2054.1,4.27958]
[1771006563142,0.58435571,2055.2,2054.1,0.24358]
[1771006563337,0.58224302,2055.0,2054.1,0.24358]
[1771006563947,0.58224302,2055.0,2054.1,0.24967077]
[1771006565350,0.58224302,2054.9,2054.1,0.24967077]
[1771006565755,0.58224302,2054.9,2054.1,0.00609077]
[1771006567355,0.58224302,2054.9,2054.1,0.02009162]
[1771006568155,0.58224302,2054.9,2054.3,0.01857703]
[1771006568457,40.8,2055.1,2054.5,0.01857703]
[1771006568458,0.58224302,2055.0,2054.5,0.01857703]
[1771006570352,0.58224302,2055.0,2054.4,0.24356]
[1771006572156,0.58224302,2055.0,2054.4,0.26896903]
[1771006572558,40.8,2055.1,2054.5,0.03185838]
[1771006572760,41.38224302,2055.1,2054.5,0.03185838]
[1771006572959,0.58224302,2055.0,2054.5,0.03185838]
[1771006573859,0.58224302,2055.0,2054.4,0.24356]
[1771006576060,0.58224302,2055.0,2054.1,4.04209077]
[1771006576361,0.58224302,2055.0,2054.1,0.00609077]
[1771006576959,0.58224302,2054.8,2053.9,0.24361]
[1771006577961,0.58224302,2054.8,2053.9,0.24907826]
[1771006579360,0.58224302,2054.8,2053.9,0.00546826]
[1771006579559,0.58224302,2054.7,2053.4,0.28444354]
[1771006579958,0.58224302,2054.5,2053.4,0.24367]
[1771006580560,0.58224302,2054.2,2053.0,0.04621112]
[1771006580761,0.58224302,2054.2,2053.2,0.00620082]
[1771006580957,0.58224302,2054.2,2053.6,0.04621112]
[1771006581158,0.58224302,2054.5,2053.9,0.79064576]
[1771006581362,0.58224302,2054.5,2054.0,0.54702576]
[1771006581563,0.58224302,2054.5,2054.1,0.79061576]
[1771006581760,0.00523529,2054.5,2054.2,0.54702576]
[1771006581965,0.58747831,2054.5,2053.7,0.54702576]
[1771006585565,0.00523529,2054.5,2054.1,0.54702576]
[1771006585761,0.00523529,2054.5,2054.3,0.54702576]
[1771006585967,0.58224302,2054.9,2054.3,0.54702576]
[1771006586172,41.38224302,2054.9,2054.3,0.54702576]
[1771006586772,41.38224302,2054.9,2054.5,0.54702576]
[1771006586968,41.38602793,2054.9,2054.5,0.54702576]
[1771006587365,0.00378491,2054.9,2054.7,0.54702576]
[1771006587570,0.00378491,2054.9,2054.7,0.55125098]
[1771006588772,0.58602793,2054.9,2054.7,0.00422522]
[1771006588977,0.00378491,2054.9,2054.7,0.00422522]
[1771006589568,0.00378491,2054.9,2054.7,0.55125098]
[1771006589971,0.58224302,2055.5,2054.9,0.54702576]
[1771006590371,0.58224302,2055.3,2054.8,0.24351]
[1771006590566,0.58224302,2055.3,2054.8,0.79053576]
[1771006590969,3.14e-06,2055.3,2055.1,0.55614506]
[1771006592172,3.14e-06,2055.3,2055.0,0.24349]
[1771006592377,0.5343775,2055.3,2055.0,0.24349]
[1771006592683,3.14e-06,2055.3,2055.1,0.55614506]
[1771006593375,3.14e-06,2055.3,2055.0,0.24349]
[1771006594576,3.14e-06,2055.3,2054.8,0.55614506]
[1771006598683,3.14e-06,2055.3,2054.7,4.57615462]
[1771006598980,3.14e-06,2055.3,2054.8,0.5359294]
[1771006601186,3.14e-06,2055.3,2054.9,0.5359294]
[1771006602186,3.14e-06,2055.3,2054.8,0.2435]
[1771006602387,3.14e-06,2055.3,2054.7,4.04022522]
[1771006602590,3.14e-06,2055.3,2054.7,0.00422522]
[1771006603887,0.55626682,2054.8,2054.0,0.5359294]
[1771006604588,0.55626682,2054.6,2054.0,0.5359294]
[1771006604788,0.55626682,2054.6,2053.9,0.5359294]
[1771006604991,0.55626682,2054.6,2054.0,0.00562583]
[1771006606990,0.55626682,2054.6,2054.2,0.5359294]
[1771006607293,0.55626682,2054.6,2054.1,0.24359]
[1771006607484,0.55626682,2054.6,2054.1,0.7795194]
[1771006607787,40.8,2054.7,2054.2,0.5359294]
[1771006607993,0.55626682,2054.9,2054.4,0.5359294]
[1771006608198,0.55626682,2055.2,2054.4,0.5359294]
[1771006608494,41.35626682,2055.1,2054.4,0.5359294]
[1771006608992,0.55626682,2055.0,2054.4,0.5359294]
[1771006609382,40.8,2055.1,2054.6,0.5359294]
[1771006609891,40.8,2055.1,2054.8,0.5359294]
[1771006610393,41.35626682,2055.1,2054.8,0.5359294]
[1771006610595,3.14e-06,2055.3,2054.8,0.5359294]
[1771006610987,0.55626682,2055.2,2054.8,0.5359294]
[1771006614388,41.35626996,2055.3,2054.8,0.5359294]
[1771006614789,0.55626682,2055.2,2054.8,0.5359294]
[1771006615489,0.55626682,2055.2,2054.7,0.24352]
[1771006615689,0.55626682,2055.2,2054.7,0.7794494]
[1771006616194,41.35626996,2055.3,2054.8,0.5359294]
[1771006616794,40.80000314,2055.3,2055.0,0.5359294]
[1771006616996,3.14e-06,2055.3,2055.0,0.5359294]
[1771006618698,0.55626996,2055.3,2054.9,0.2435]
[1771006618995,0.55626996,2055.3,2054.9,0.7794294]
[1771006619197,0.55626996,2055.3,2055.0,0.5359294]
[1771006619399,3.14e-06,2055.3,2055.0,0.5359294]
[1771006619592,0.55626682,2056.2,2055.2,0.5359294]
[1771006620594,0.55626682,2056.0,2055.1,0.7793994]
[1771006621098,0.55626682,2056.0,2055.0,0.61322538]
[1771006621399,0.55626682,2056.0,2055.1,0.61322538]
[1771006621600,0.55626682,2056.0,2055.3,0.61322538]
[1771006622496,0.58135674,2056.0,2055.5,0.61322538]
[1771006622690,40.8,2056.1,2055.7,0.61322538]
[1771006622892,0.58135674,2056.0,2055.5,0.0062981]
[1771006623902,0.58135674,2056.0,2055.5,0.61952348]
[1771006625101,0.58135674,2056.0,2055.2,0.61322538]
[1771006625290,0.58135674,2056.0,2055.3,0.24345]
[1771006625497,0.58135674,2056.0,2055.6,0.61322538]
[1771006625698,0.58135674,2056.0,2055.5,0.24343]
[1771006626105,0.58135674,2056.0,2055.5,0.24920726]
[1771006626907,0.58135674,2056.0,2055.5,0.00577726]
[1771006627206,0.58135674,2056.0,2055.5,0.61900264]
[1771006627805,0.58135674,2056.0,2055.5,0.00577726]
[1771006628006,0.58135674,2056.0,2055.5,0.61900264]
[1771006628407,41.38135674,2056.1,2055.7,0.61322538]
[1771006628609,0.00469839,2056.2,2055.7,0.61322538]
[1771006628804,0.58605513,2056.2,2055.7,0.61322538]
[1771006629004,41.38605513,2056.2,2055.7,0.61322538]
[1771006629206,40.80469839,2056.2,2055.7,0.61322538]
[1771006629601,0.58135674,2057.1,2056.1,0.61322538]
[1771006630809,0.58135674,2056.9,2056.1,0.61322538]
[1771006636207,0.58135674,2056.7,2056.1,0.61322538]
[1771006636606,0.58135674,2056.7,2056.0,0.24337]
[1771006637313,0.58135674,2056.7,2055.6,4.65022538]
[1771006637809,0.58135674,2056.7,2055.9,0.61322538]
[1771006638713,0.58135674,2056.7,2056.1,0.61322538]
[1771006638909,0.58135674,2056.7,2055.5,0.00577726]
[1771006639114,0.58135674,2056.3,2055.0,0.61322538]
[1771006639611,0.58135674,2056.1,2055.0,0.61322538]
[1771006639809,0.58135674,2056.1,2054.9,0.61322538]
[1771006640106,0.58135674,2056.1,2054.9,0.61902889]
[1771006640510,0.58135674,2056.1,2054.9,0.00580351]
[1771006641613,5.10734,2056.2,2054.9,0.00580351]
[1771006641614,0.58135674,2055.9,2054.9,0.00580351]
[1771006641813,16.33135674,2055.9,2054.9,0.00580351]
[1771006642010,0.58135674,2055.8,2054.9,0.00580351]
[1771006642912,0.58135674,2055.8,2054.5,0.61322538]
[1771006644016,0.58135674,2055.8,2054.5,0.61750177]
[1771006647119,0.58135674,2055.6,2054.5,0.61750177]
[1771006647314,0.5859139,2055.6,2054.5,0.61750177]
[1771006648315,0.5859139,2055.6,2054.9,0.61322538]
[1771006649717,0.5859139,2055.6,2055.1,0.61322538]
[1771006649718,0.00455716,2055.6,2055.1,0.61322538]
[1771006650118,0.5859139,2055.6,2055.1,0.61322538]
[1771006650417,0.00455716,2055.6,2055.1,0.61322538]
[1771006651616,40.8,2055.7,2055.3,0.77319684]
[1771006651822,0.82812836,2056.0,2055.3,0.77319684]
[1771006652017,0.82812836,2056.0,2055.2,0.24346]
[1771006652319,0.82812836,2056.0,2055.3,0.6936067]
[1771006652520,0.83401259,2056.0,2055.3,0.6936067]
[1771006652719,0.82812836,2055.8,2055.3,0.6936067]
[1771006653420,0.82812836,2055.8,2055.2,0.95672469]
[1771006653621,40.8,2055.9,2055.3,0.71326469]
[1771006653820,40.8,2055.9,2055.5,0.71326469]
[1771006654416,41.62812836,2055.9,2055.5,0.71326469]
[1771006654614,0.82812836,2055.8,2055.4,0.96755438]
[1771006655020,0.82812836,2055.8,2055.4,0.24344]
[1771006655820,0.82812836,2055.8,2055.5,0.73431118]
[1771006656517,40.8,2055.9,2055.5,0.73431118]
[1771006657124,0.85249913,2055.8,2055.5,0.73431118]
[1771006657325,0.85249913,2055.8,2055.4,1.0205958]
[1771006657527,0.85249913,2055.8,2055.5,0.7771558]
[1771006657824,41.65249913,2055.9,2055.5,0.7771558]
[1771006658422,40.8,2055.9,2055.5,0.7771558]
[1771006658722,0.00588423,2056.0,2055.6,0.24342]
[1771006658921,0.93385517,2056.0,2055.6,0.24342]
[1771006659716,41.72799833,2055.9,2055.6,0.24342]
[1771006660516,41.72910441,2055.9,2055.6,0.30418939]
[1771006662028,41.72910441,2055.9,2055.6,0.24342]
[1771006662321,0.92912831,2055.8,2055.6,0.24342]
[1771006662730,0.92912831,2055.8,2055.2,0.08243871]
[1771006663420,0.92912831,2055.8,2055.1,0.24346]
[1771006665127,0.93104285,2055.6,2055.1,0.24346]
[1771006666423,40.8,2055.7,2055.1,0.24346]
[1771006666424,41.7312781,2055.7,2055.2,0.11189916]
[1771006666828,40.8,2055.7,2055.4,0.11189916]
[1771006667328,0.9312781,2055.9,2055.4,0.11189916]
[1771006667829,40.8,2055.8,2055.5,0.36402127]
[1771006668528,41.7310716,2055.8,2055.5,0.24343]
[1771006668920,40.8,2055.8,2055.5,0.24343]
[1771006669121,40.8,2055.8,2055.5,0.37313401]
[1771006669329,41.73117062,2055.8,2055.5,0.37313401]
[1771006669630,41.73117062,2055.8,2055.5,0.24343]
[1771006669825,41.73117062,2055.8,2055.5,0.40216696]
[1771006670128,41.73117062,2055.8,2055.5,0.24343]
[1771006670524,0.93812034,2056.0,2055.6,0.16490171]
[1771006670924,0.00588423,2056.0,2055.6,0.16490171]
[1771006671123,0.93812034,2056.0,2055.6,0.16490171]
[1771006671328,0.93812034,2056.0,2055.5,0.24343]
[1771006671520,0.93812034,2056.0,2055.3,0.17301477]
[1771006671826,0.93812034,2056.0,2055.1,0.41648477]
[1771006672030,0.93812034,2056.0,2055.2,0.17301477]
[1771006676233,0.93812034,2056.0,2055.2,7.40741773]
[1771006678331,0.93812034,2056.0,2055.0,7.23440296]
[1771006678538,0.93812034,2056.0,2054.8,7.46472743]
[1771006678732,0.938011,2055.8,2054.7,11.51492296]
[1771006679037,0.938011,2055.6,2054.7,0.24352]
[1771006679640,0.938011,2055.6,2054.7,0.48476815]
[1771006681339,0.938011,2055.6,2054.5,0.27492574]
[1771006681543,0.97390008,2055.5,2054.5,0.00427639]
[1771006682542,0.97390008,2055.5,2054.5,0.28964042]
[1771006683241,0.97390008,2055.5,2054.7,0.29568854]
[1771006683640,0.97390008,2055.5,2054.9,0.29568854]
[1771006684445,40.8,2055.4,2054.9,0.29568854]
[1771006684648,40.8,2055.4,2054.8,0.24351]
[1771006684649,0.97390008,2055.3,2054.8,0.24351]
[1771006684843,41.77390008,2055.4,2054.9,0.28364694]
[1771006685339,0.97390008,2055.3,2054.8,0.53715202]
[1771006685740,0.97390008,2055.3,2054.8,0.24351]
[1771006686546,0.97390008,2055.3,2054.7,4.037]
[1771006687044,0.97390008,2055.3,2054.5,0.00427639]
[1771006687343,0.97390008,2055.3,2054.5,0.31088389]
[1771006689444,0.97390008,2055.3,2054.6,0.24353]
[1771006689644,0.97390008,2055.3,2054.6,0.56340129]
[1771006689846,0.97390008,2055.3,2054.8,0.56338129]
[1771006690052,0.97390008,2055.3,2054.9,0.31987129]
[1771006690244,41.77390008,2055.4,2054.9,0.31987129]
[1771006690444,41.77390008,2055.4,2055.0,0.57330648]
[1771006690644,41.77390008,2055.4,2055.1,0.32981648]
[1771006690645,40.8,2055.4,2055.1,0.32981648]
[1771006691151,0.97390008,2055.5,2055.1,0.32981648]
[1771006691348,0.97390008,2055.5,2055.0,0.24349]
[1771006691948,0.97390008,2055.5,2055.0,0.58255775]
[1771006692151,41.77390008,2055.4,2055.0,0.58255775]
[1771006692449,0.97390008,2055.3,2055.0,0.24349]
[1771006692850,0.97390008,2055.3,2054.8,4.037]
[1771006693050,0.97390008,2055.3,2054.6,0.24353]
[1771006694254,0.97390008,2055.3,2054.5,0.00427639]
[1771006694951,0.97390008,2055.2,2053.9,16.22593641]
[1771006695152,0.97390008,2055.2,2053.9,0.37243595]
[1771006695548,0.97390008,2054.9,2053.8,4.28063]
[1771006695945,0.97390008,2054.9,2053.8,4.28596342]
[1771006697649,0.97390008,2054.7,2053.8,4.28596342]
[1771006698355,0.97390008,2054.7,2053.8,4.68088248]
[1771006698556,0.97390008,2054.7,2054.0,0.24361]
[1771006698754,0.97390008,2054.7,2054.1,0.39491906]
[1771006699444,0.97390008,2054.7,2054.0,0.24361]
[1771006699648,0.97390008,2054.7,2054.0,0.64693308]
[1771006700155,0.97390008,2054.7,2054.1,0.40332308]
[1771006701253,0.97390008,2054.7,2054.2,0.24358]
[1771006701452,41.77390008,2054.8,2054.3,0.40347222]
[1771006702455,0.97390008,2055.1,2054.5,0.42346379]
[1771006702662,5.67902406,2055.9,2054.7,0.42346379]
[1771006702663,0.97390008,2055.8,2054.7,0.42346379]
[1771006703355,0.97390008,2055.8,2054.8,0.24351]
[1771006703558,0.97390008,2055.6,2054.8,0.24351]
[1771006704359,0.97390008,2055.6,2054.8,0.70588809]
[1771006705462,0.97390008,2055.6,2054.9,0.47029002]
[1771006706452,0.97390008,2055.6,2054.6,0.47826116]
[1771006706657,0.97390008,2055.6,2054.3,7.47796296]
[1771006706857,0.97390008,2055.6,2054.4,0.47826116]
[1771006707259,3.53177027,2055.6,2054.4,0.47826116]
[1771006707460,0.97390008,2055.5,2054.3,0.24356]
[1771006707660,0.97390008,2055.5,2054.3,0.72956113]
[1771006707962,0.97390008,2055.5,2054.4,0.48600113]
[1771006708759,0.97390008,2055.5,2054.3,0.24356]
[1771006709057,0.97390008,2055.3,2054.3,0.24356]
[1771006709265,0.97390008,2055.3,2054.3,0.75573104]
[1771006709562,0.97390008,2055.3,2054.5,0.24355]
[1771006710361,0.97390008,2055.3,2054.5,0.76639007]
[1771006711660,0.97390008,2055.3,2054.5,0.24355]
[1771006713861,0.97390008,2055.3,2054.2,4.037]
[1771006714460,40.8,2055.2,2054.2,4.037]
[1771006714661,1.14691147,2055.1,2054.2,4.037]
[1771006714860,1.14691147,2055.1,2054.1,0.7934744]
[1771006715159,1.14691147,2054.9,2053.8,0.00533342]
[1771006715554,1.14691147,2054.6,2053.3,4.60315309]
[1771006715761,1.14691147,2054.4,2053.3,4.037]
[1771006716162,1.14691147,2054.3,2053.3,4.037]
[1771006716761,1.14691147,2054.0,2053.3,0.00496764]
[1771006716960,1.14691147,2054.0,2053.2,0.24369]
[1771006717868,1.14691147,2054.0,2052.8,0.84345189]
[1771006718064,1.14691147,2054.0,2052.8,0.84698194]
[1771006718567,1.14691147,2054.0,2053.2,0.82646591]
[1771006718765,1.14691147,2054.0,2053.1,0.24371]
[1771006718968,1.14691147,2054.0,2052.8,0.82999596]
[1771006719162,1.14691147,2054.0,2052.8,0.00353005]
[1771006719365,1.19927885,2053.7,2052.8,0.00353005]
[1771006719965,40.8,2053.6,2052.8,0.00353005]
[1771006720268,1.19927885,2053.5,2052.8,0.00353005]
[1771006720870,1.19927885,2053.5,2052.2,0.82460113]
[1771006721767,1.19927885,2053.5,2052.5,0.24378]
[1771006722069,1.19927885,2053.5,2052.6,0.83071009]
[1771006722870,1.19927885,2053.5,2052.8,0.81380059]
[1771006723367,40.8,2053.6,2053.0,0.81997028]
[1771006723670,1.19927885,2053.7,2053.0,0.81997028]
[1771006723871,1.19927885,2053.7,2052.9,0.24374]
[1771006724169,1.19927885,2053.5,2052.9,0.24374]
[1771006724568,1.19927885,2053.5,2052.6,0.81740024]
[1771006725566,1.19927885,2053.5,2052.8,0.82315431]
[1771006726077,1.19927885,2053.5,2053.0,0.82315431]
[1771006726373,40.8,2053.6,2053.0,0.82315431]
[1771006728776,40.8,2053.6,2053.2,0.90456051]
[1771006729068,1.19927885,2054.1,2053.4,0.90456051]
[1771006729469,1.20381646,2054.3,2053.8,0.91019366]
[1771006730273,40.80453761,2054.3,2054.0,0.9158801]
[1771006730474,1.19927885,2055.1,2054.0,0.9158801]
[1771006730670,1.19927885,2055.1,2054.2,0.91801948]
[1771006730876,1.19927885,2054.9,2054.1,0.24359]
[1771006731068,1.19927885,2054.9,2054.2,0.91801948]
[1771006731476,1.20550397,2054.9,2054.2,0.92255709]
[1771006731866,1.20550397,2054.9,2054.4,0.92355735]
[1771006732076,5.12e-06,2054.9,2054.6,0.92355735]
[1771006732476,5.12e-06,2054.9,2054.8,0.94099011]
[1771006733977,1.19927885,2055.3,2054.8,0.94099011]
[1771006734278,41.99927885,2055.2,2054.8,0.94099011]
[1771006734482,41.99927885,2055.2,2054.7,1.18494051]
[1771006734779,1.19927885,2055.1,2054.7,1.18494051]
[1771006734982,0.00369078,2055.1,2054.8,0.94142051]
[1771006735379,1.20296963,2055.1,2054.4,0.94679868]